Workbook

Sheet ACCUEIL

Sheet EQUIPES
B2: Classe: | C2: 3A | D2: Renseigner les équipes de BASKET
B3: EQUIPES | C3: N° | D3: A | E3: B | F3: C | G3: D | H3: E
B4: JOUEURS | C4: 1 | D4: Eric | E4: Fabien | F4: Fred | G4: Christian | H4: Stéphanie
C5: 2 | D5: Lucie | E5: Damien | F5: Sami | G5: Stephane | H5: Sarah
C6: 3 | D6: Mathilde | E6: Lucas | F6: Léonie | G6: Olivier | H6: Murielle
C7: 4 | D7: Idriss | E7: Mélanie | F7: Clara | G7: Marc | H7: David
C8: 5 | D8: Clemy | E8: Marie | F8: Chloé | G8: Ernest | H8: Quentin
C9: 6 | D9: Yacine
C10: 7
C11: 8
B12: Matchs joués | D12: =COUNTIF(RESULTeqA!A:A,">0") -> 0 | E12: =COUNTIF(RESULTeqB!A:A,">0") -> 1 | F12: =COUNTIF(RESULTeqC!A:A,">0") -> 0 | G12: =COUNTIF(RESULTeqD!A:A,">0") -> 2 | H12: =COUNTIF(RESULTeqE!A:A,">0") -> 1
A14: Historique des rencontres
A15: Equipe_D | B15: contre | C15: Equipe_E
A16: Equipe_B | B16: contre | C16: Equipe_D
A72: Equipe A
A73: Equipe B
A74: Equipe C
A75: Equipe D
A76: Equipe E

Sheet BASKET
A1: Equipe_C | M1: Equipe_D
A6: Fred | C6: Sami | E6: Léonie | G6: Clara | M6: Christian | O6: Stephane | Q6: Olivier | S6: Marc
A7: Chloé | M7: Ernest

Sheet STAT
B1: =BASKET!A1 -> Equipe_C | C1: - | D1: =BASKET!M1 -> Equipe_D
A2: Tirs | B2: 0 | D2: 0
A3: Paniers | B3: 0 | D3: 0
A4: AXE DE TRAVAIL N°1 TIR | B4: =IF(B2>0,B3/B2,0) -> 0 | D4: =IF(D2>0,D3/D2,0) -> 0
A5: Possessions | B5: 0 | D5: 0
A6: Pertes de balle | B6: 0 | D6: 0
A7: AXE DE TRAVAIL N°2 CONSERVATION | B7: =IF(B5>0,1-(B6/B5),0) -> 0 | D7: =IF(D5>0,1-(D6/D5),0) -> 0
A8: AXE DE TRAVAIL N°3 RECUPERATION (VOLUME DE JEU) | B8: =IF(B11>0,B5/B11,0) -> 0 | D8: =IF(D11>0,D5/D11,0) -> 0
A9: SCORE | B9: 0 | D9: 0
A10: VICTOIRE - DEFAITE - NUL | B10: =IF(B9>D9,"V",IF(B9<D9,"D","N")) -> N | D10: =IF(D9>B9,"V",IF(D9<B9,"D","N")) -> N
A11: VOLUME TOTAL DE JEU (Possessions) | B11: =B5+D5 -> 0 | D11: =B5+D5 -> 0
A12: AXE DE TRAVAIL N°4 PROGRESSION | B12: =IF(B5>0,B2/B5,0) -> 0 | D12: =IF(D5>0,D2/D5,0) -> 0
A13: =A9 -> SCORE | B13: 0 | D13: =D9 -> 0
A14: VICTOIRE - DEFAITE - NUL | B14: N | C14: 0 | D14: =D10 -> N
A15: VOLUME TOTAL DE JEU (Possessions) | B15: 0 | D15: =D11 -> 0

Sheet CLASSEMENT
B1: Victoires | E1: Efficacité au tir | H1: Conservation de balle | K1: Récupération de balle | N1: Progression vers la cible
C2: =RESULTeqA!Y2+RESULTeqA!X2/100+RESULTeqA!Q2/500 -> 0 | D2: Equipe A | F2: =RESULTeqA!T2+C2/1000 -> 0 | G2: Equipe A | I2: =RESULTeqA!U2+C2/1000 -> 0 | J2: Equipe A | L2: =RESULTeqA!V2+C2/1000 -> 0 | M2: Equipe A | O2: =RESULTeqA!W2+C2/1000 -> 0 | P2: Equipe A
C3: =RESULTeqB!Y2+RESULTeqB!X2/100+RESULTeqB!Q2/500 -> 3.07 | D3: Equipe B | F3: =RESULTeqB!T2+C3/1000 -> 0.50307 | G3: Equipe B | I3: =RESULTeqB!U2+C3/1000 -> 0.20307 | J3: Equipe B | L3: =RESULTeqB!V2+C3/1000 -> 0.50307 | M3: Equipe B | O3: =RESULTeqB!W2+C3/1000 -> 1.20307 | P3: Equipe B
C4: =RESULTeqC!Y2+RESULTeqC!X2/100+RESULTeqC!Q2/500 -> 0 | D4: Equipe C | F4: =RESULTeqC!T2+C4/1000 -> 0 | G4: Equipe C | I4: =RESULTeqC!U2+C4/1000 -> 0 | J4: Equipe C | L4: =RESULTeqC!V2+C4/1000 -> 0 | M4: Equipe C | O4: =RESULTeqC!W2+C4/1000 -> 0 | P4: Equipe C
C5: =RESULTeqD!Y2+RESULTeqD!X2/100+RESULTeqD!Q2/500 -> 2.08 | D5: Equipe D | F5: =RESULTeqD!T2+C5/1000 -> 0.60208 | G5: Equipe D | I5: =RESULTeqD!U2+C5/1000 -> 0.20208 | J5: Equipe D | L5: =RESULTeqD!V2+C5/1000 -> 0.5283957895 | M5: Equipe D | O5: =RESULTeqD!W2+C5/1000 -> 0.50208 | P5: Equipe D
C6: =RESULTeqE!Y2+RESULTeqE!X2/100+RESULTeqE!Q2/500 -> 3.048 | D6: Equipe E | F6: =RESULTeqE!T2+C6/1000 -> 1.003048 | G6: Equipe E | I6: =RESULTeqE!U2+C6/1000 -> 0.253048 | J6: Equipe E | L6: =RESULTeqE!V2+C6/1000 -> 0.4474924444 | M6: Equipe E | O6: =RESULTeqE!W2+C6/1000 -> 0.503048 | P6: Equipe E
B10: Classement | E10: Classement | H10: Classement | K10: Classement | N10: Classement
A11: 1 | B11: 1er | C11: =IF(LARGE(C$2:C$6,1)=LARGE(C$2:C$6,5),"",VLOOKUP(LARGE(C$2:C$6,A11),C$2:D$6,2,FALSE)) -> Equipe B | D11: =RANK(C2,C1:C2) -> 1 | E11: 1er | F11: =IF($C$11="","",VLOOKUP(LARGE(F$2:F$6,A11),F$2:G$6,2,FALSE)) -> Equipe E | G11: =RANK(F2,$F$2:$F$6) -> 4 | H11: 1er | I11: =IF($C$11="","",VLOOKUP(LARGE(I$2:I$6,A11),I$2:J$6,2,FALSE)) -> Equipe E | J11: =RANK(I2,$I$2:$I$6) -> 4 | K11: 1er | L11: =IF($C$11="","",VLOOKUP(LARGE(L$2:L$6,A11),L$2:M$6,2,FALSE)) -> Equipe D | M11: =RANK(L2,$L$2:$L$6) -> 4 | N11: 1er | O11: =IF($C$11="","",VLOOKUP(LARGE(O$2:O$6,A11),O$2:P$6,2,FALSE)) -> Equipe B | P11: =RANK(O2,$O$2:$O$6) -> 4
A12: 2 | B12: 2eme | C12: =IF(LARGE(C$2:C$6,1)=LARGE(C$2:C$6,5),"",VLOOKUP(LARGE(C$2:C$6,A12),C$2:D$6,2,FALSE)) -> Equipe E | D12: =RANK(C3,C1:C4) -> 1 | E12: 2eme | F12: =IF($C$11="","",VLOOKUP(LARGE(F$2:F$6,A12),F$2:G$6,2,FALSE)) -> Equipe D | G12: =RANK(F3,$F$2:$F$6) -> 3 | H12: 2eme | I12: =IF($C$11="","",VLOOKUP(LARGE(I$2:I$6,A12),I$2:J$6,2,FALSE)) -> Equipe B | J12: =RANK(I3,$I$2:$I$6) -> 2 | K12: 2eme | L12: =IF($C$11="","",VLOOKUP(LARGE(L$2:L$6,A12),L$2:M$6,2,FALSE)) -> Equipe B | M12: =RANK(L3,$L$2:$L$6) -> 2 | N12: 2eme | O12: =IF($C$11="","",VLOOKUP(LARGE(O$2:O$6,A12),O$2:P$6,2,FALSE)) -> Equipe E | P12: =RANK(O3,$O$2:$O$6) -> 1
A13: 3 | B13: 3eme | C13: =IF(LARGE(C$2:C$6,1)=LARGE(C$2:C$6,5),"",VLOOKUP(LARGE(C$2:C$6,A13),C$2:D$6,2,FALSE)) -> Equipe D | D13: =RANK(C4,C3:C7) -> 4 | E13: 3eme | F13: =IF($C$11="","",VLOOKUP(LARGE(F$2:F$6,A13),F$2:G$6,2,FALSE)) -> Equipe B | G13: =RANK(F4,$F$2:$F$6) -> 4 | H13: 3eme | I13: =IF($C$11="","",VLOOKUP(LARGE(I$2:I$6,A13),I$2:J$6,2,FALSE)) -> Equipe D | J13: =RANK(I4,$I$2:$I$6) -> 4 | K13: 3eme | L13: =IF($C$11="","",VLOOKUP(LARGE(L$2:L$6,A13),L$2:M$6,2,FALSE)) -> Equipe E | M13: =RANK(L4,$L$2:$L$6) -> 4 | N13: 3eme | O13: =IF($C$11="","",VLOOKUP(LARGE(O$2:O$6,A13),O$2:P$6,2,FALSE)) -> Equipe D | P13: =RANK(O4,$O$2:$O$6) -> 4
A14: 4 | B14: 4eme | C14: =IF(LARGE(C$2:C$6,1)=LARGE(C$2:C$6,5),"",VLOOKUP(LARGE(C$2:C$6,A14),C$2:D$6,2,FALSE)) -> Equipe A | D14: =RANK(C5,C5:C9) -> 2 | E14: 4eme | F14: =IF($C$11="","",VLOOKUP(LARGE(F$2:F$6,A14),F$2:G$6,2,FALSE)) -> Equipe A | G14: =RANK(F5,$F$2:$F$6) -> 2 | H14: 4eme | I14: =IF($C$11="","",VLOOKUP(LARGE(I$2:I$6,A14),I$2:J$6,2,FALSE)) -> Equipe A | J14: =RANK(I5,$I$2:$I$6) -> 3 | K14: 4eme | L14: =IF($C$11="","",VLOOKUP(LARGE(L$2:L$6,A14),L$2:M$6,2,FALSE)) -> Equipe A | M14: =RANK(L5,$L$2:$L$6) -> 1 | N14: 4eme | O14: =IF($C$11="","",VLOOKUP(LARGE(O$2:O$6,A14),O$2:P$6,2,FALSE)) -> Equipe A | P14: =RANK(O5,$O$2:$O$6) -> 3
A15: 5 | B15: 5eme | C15: =IF(LARGE(C$2:C$6,1)=LARGE(C$2:C$6,5),"",VLOOKUP(LARGE(C$2:C$6,A15),C$2:D$6,2,FALSE)) -> Equipe A | D15: =RANK(C6,C5:C8) -> 1 | E15: 5eme | F15: =IF($C$11="","",VLOOKUP(LARGE(F$2:F$6,A15),F$2:G$6,2,FALSE)) -> Equipe A | G15: =RANK(F6,$F$2:$F$6) -> 1 | H15: 5eme | I15: =IF($C$11="","",VLOOKUP(LARGE(I$2:I$6,A15),I$2:J$6,2,FALSE)) -> Equipe A | J15: =RANK(I6,$I$2:$I$6) -> 1 | K15: 5eme | L15: =IF($C$11="","",VLOOKUP(LARGE(L$2:L$6,A15),L$2:M$6,2,FALSE)) -> Equipe A | M15: =RANK(L6,$L$2:$L$6) -> 3 | N15: 5eme | O15: =IF($C$11="","",VLOOKUP(LARGE(O$2:O$6,A15),O$2:P$6,2,FALSE)) -> Equipe A | P15: =RANK(O6,$O$2:$O$6) -> 2

Sheet RESULTeqA
D1: Equipe A | N1: TOTAL | O1: Tirs | P1: Paniers | Q1: Possessions | R1: Pertes de balle | S1: Nombre total possessions | T1: EFFICACITE TIR | U1: EFFICACITE CONSERVATION | V1: EFFICACITE RECUPERATION (VOLUME DE JEU) | W1: EFFICACITE PROGRESSION | X1: SCORE | Y1: Points de classement (V:3/N:2/D:1) | AA1: INEFFICACITE TIR | AB1: INEFFICACITE CONSERVATION | AC1: INEFFICACITE RECUPERATION (VOLUME DE JEU) | AD1: INEFFICACITE PROGRESSION
A2: Match n° | B2: Tirs | C2: Paniers | D2: Possessions | E2: Pertes de balle | F2: Nombre total possessions | G2: AXE DE TRAVAIL N°1 TIR | H2: AXE DE TRAVAIL N°2 CONSERVATION | I2: AXE DE TRAVAIL N°3 RECUPERATION (VOLUME DE JEU) | J2: AXE DE TRAVAIL N°4 PROGRESSION | K2: SCORE | L2: VICTOIRE NUL DEFAITE (V-N-D) 3pts-2pts-1pt | O2: =SUM(B:B) -> 0 | P2: =SUM(C:C) -> 0 | Q2: =SUM(D:D) -> 0 | R2: =SUM(E:E) -> 0 | S2: =SUM(F:F) -> 0 | T2: =IF(O2>0,P2/O2,"0%") -> 0% | U2: =IF(Q2>0,1-(R2/Q2),"0%") -> 0% | V2: =IF(S2>0,Q2/S2,"0%") -> 0% | W2: =IF(Q2>0,O2/Q2,"0%") -> 0% | X2: =SUM(K:K) -> 0 | Y2: =SUM(L:L) -> 0 | AA2: =1-T2 -> 1 | AB2: =1-U2 -> 1 | AC2: =1-V2 -> 1 | AD2: =1-W2 -> 1

Sheet RESULTeqB
D1: Equipe B | N1: TOTAL | O1: Tirs | P1: Paniers | Q1: Possessions | R1: Pertes de balle | S1: Nombre total possessions | T1: EFFICACITE TIR | U1: EFFICACITE CONSERVATION | V1: EFFICACITE RECUPERATION (VOLUME DE JEU) | W1: EFFICACITE PROGRESSION | X1: SCORE | Y1: Points de classement (V:3/N:2/D:1) | AA1: INEFFICACITE TIR | AB1: INEFFICACITE CONSERVATION | AC1: INEFFICACITE RECUPERATION (VOLUME DE JEU) | AD1: INEFFICACITE PROGRESSION
A2: Match n° | B2: Tirs | C2: Paniers | D2: Possessions | E2: Pertes de balle | F2: Nombre total possessions | G2: AXE DE TRAVAIL N°1 TIR | H2: AXE DE TRAVAIL N°2 CONSERVATION | I2: AXE DE TRAVAIL N°3 RECUPERATION (VOLUME DE JEU) | J2: AXE DE TRAVAIL N°4 PROGRESSION | K2: SCORE | L2: VICTOIRE NUL DEFAITE (V-N-D) 3pts-2pts-1pt | O2: =SUM(B:B) -> 6 | P2: =SUM(C:C) -> 3 | Q2: =SUM(D:D) -> 5 | R2: =SUM(E:E) -> 4 | S2: =SUM(F:F) -> 10 | T2: =IF(O2>0,P2/O2,"0%") -> 0.5 | U2: =IF(Q2>0,1-(R2/Q2),"0%") -> 0.2 | V2: =IF(S2>0,Q2/S2,"0%") -> 0.5 | W2: =IF(Q2>0,O2/Q2,"0%") -> 1.2 | X2: =SUM(K:K) -> 6 | Y2: =SUM(L:L) -> 3 | AA2: =1-T2 -> 0.5 | AB2: =1-U2 -> 0.8 | AC2: =1-V2 -> 0.5 | AD2: =1-W2 -> -0.2
A3: =A4+1 -> 1 | B3: 6 | C3: 3 | D3: 5 | E3: 4 | F3: 10 | G3: 0.5 | H3: 0.2 | I3: 0.5 | J3: 1.2 | K3: 6 | L3: 3

Sheet RESULTeqC
D1: Equipe C | N1: TOTAL | O1: Tirs | P1: Paniers | Q1: Possessions | R1: Pertes de balle | S1: Nombre total possessions | T1: EFFICACITE TIR | U1: EFFICACITE CONSERVATION | V1: EFFICACITE RECUPERATION (VOLUME DE JEU) | W1: EFFICACITE PROGRESSION | X1: SCORE | Y1: Points de classement (V:3/N:2/D:1) | AA1: INEFFICACITE TIR | AB1: INEFFICACITE CONSERVATION | AC1: INEFFICACITE RECUPERATION (VOLUME DE JEU) | AD1: INEFFICACITE PROGRESSION
A2: Match n° | B2: Tirs | C2: Paniers | D2: Possessions | E2: Pertes de balle | F2: Nombre total possessions | G2: AXE DE TRAVAIL N°1 TIR | H2: AXE DE TRAVAIL N°2 CONSERVATION | I2: AXE DE TRAVAIL N°3 RECUPERATION (VOLUME DE JEU) | J2: AXE DE TRAVAIL N°4 PROGRESSION | K2: SCORE | L2: VICTOIRE NUL DEFAITE (V-N-D) 3pts-2pts-1pt | O2: =SUM(B:B) -> 0 | P2: =SUM(C:C) -> 0 | Q2: =SUM(D:D) -> 0 | R2: =SUM(E:E) -> 0 | S2: =SUM(F:F) -> 0 | T2: =IF(O2>0,P2/O2,"0%") -> 0% | U2: =IF(Q2>0,1-(R2/Q2),"0%") -> 0% | V2: =IF(S2>0,Q2/S2,"0%") -> 0% | W2: =IF(Q2>0,O2/Q2,"0%") -> 0% | X2: =SUM(K:K) -> 0 | Y2: =SUM(L:L) -> 0 | AA2: =1-T2 -> 1 | AB2: =1-U2 -> 1 | AC2: =1-V2 -> 1 | AD2: =1-W2 -> 1

Sheet RESULTeqD
D1: Equipe D | N1: TOTAL | O1: Tirs | P1: Paniers | Q1: Possessions | R1: Pertes de balle | S1: Nombre total possessions | T1: EFFICACITE TIR | U1: EFFICACITE CONSERVATION | V1: EFFICACITE RECUPERATION (VOLUME DE JEU) | W1: EFFICACITE PROGRESSION | X1: SCORE | Y1: Points de classement (V:3/N:2/D:1) | AA1: INEFFICACITE TIR | AB1: INEFFICACITE CONSERVATION | AC1: INEFFICACITE RECUPERATION (VOLUME DE JEU) | AD1: INEFFICACITE PROGRESSION
A2: Match n° | B2: Tirs | C2: Paniers | D2: Possessions | E2: Pertes de balle | F2: Nombre total possessions | G2: AXE DE TRAVAIL N°1 TIR | H2: AXE DE TRAVAIL N°2 CONSERVATION | I2: AXE DE TRAVAIL N°3 RECUPERATION (VOLUME DE JEU) | J2: AXE DE TRAVAIL N°4 PROGRESSION | K2: SCORE | L2: VICTOIRE NUL DEFAITE (V-N-D) 3pts-2pts-1pt | O2: =SUM(B:B) -> 5 | P2: =SUM(C:C) -> 3 | Q2: =SUM(D:D) -> 10 | R2: =SUM(E:E) -> 8 | S2: =SUM(F:F) -> 19 | T2: =IF(O2>0,P2/O2,"0%") -> 0.6 | U2: =IF(Q2>0,1-(R2/Q2),"0%") -> 0.2 | V2: =IF(S2>0,Q2/S2,"0%") -> 0.5263157895 | W2: =IF(Q2>0,O2/Q2,"0%") -> 0.5 | X2: =SUM(K:K) -> 6 | Y2: =SUM(L:L) -> 2 | AA2: =1-T2 -> 0.4 | AB2: =1-U2 -> 0.8 | AC2: =1-V2 -> 0.4736842105 | AD2: =1-W2 -> 0.5
A3: =A4+1 -> 2 | B3: 2 | C3: 1 | D3: 5 | E3: 4 | F3: 9 | G3: 0.5 | H3: 0.2 | I3: 0.5555555556 | J3: 0.4 | K3: 2 | L3: 1
A4: =A5+1 -> 1 | B4: 3 | C4: 2 | D4: 5 | E4: 4 | F4: 10 | G4: 0.6666666667 | H4: 0.2 | I4: 0.5 | J4: 0.6 | K4: 4 | L4: 1

Sheet RESULTeqE
D1: Equipe E | N1: TOTAL | O1: Tirs | P1: Paniers | Q1: Possessions | R1: Pertes de balle | S1: Nombre total possessions | T1: EFFICACITE TIR | U1: EFFICACITE CONSERVATION | V1: EFFICACITE RECUPERATION (VOLUME DE JEU) | W1: EFFICACITE PROGRESSION | X1: SCORE | Y1: Points de classement (V:3/N:2/D:1) | AA1: INEFFICACITE TIR | AB1: INEFFICACITE CONSERVATION | AC1: INEFFICACITE RECUPERATION (VOLUME DE JEU) | AD1: INEFFICACITE PROGRESSION
A2: Match n° | B2: Tirs | C2: Paniers | D2: Possessions | E2: Pertes de balle | F2: Nombre total possessions | G2: AXE DE TRAVAIL N°1 TIR | H2: AXE DE TRAVAIL N°2 CONSERVATION | I2: AXE DE TRAVAIL N°3 RECUPERATION (VOLUME DE JEU) | J2: AXE DE TRAVAIL N°4 PROGRESSION | K2: SCORE | L2: VICTOIRE NUL DEFAITE (V-N-D) 3pts-2pts-1pt | O2: =SUM(B:B) -> 2 | P2: =SUM(C:C) -> 2 | Q2: =SUM(D:D) -> 4 | R2: =SUM(E:E) -> 3 | S2: =SUM(F:F) -> 9 | T2: =IF(O2>0,P2/O2,"0%") -> 1 | U2: =IF(Q2>0,1-(R2/Q2),"0%") -> 0.25 | V2: =IF(S2>0,Q2/S2,"0%") -> 0.4444444444 | W2: =IF(Q2>0,O2/Q2,"0%") -> 0.5 | X2: =SUM(K:K) -> 4 | Y2: =SUM(L:L) -> 3 | AA2: =1-T2 -> 0 | AB2: =1-U2 -> 0.75 | AC2: =1-V2 -> 0.5555555556 | AD2: =1-W2 -> 0.5
A3: =A4+1 -> 1 | B3: 2 | C3: 2 | D3: 4 | E3: 3 | F3: 9 | G3: 1 | H3: 0.25 | I3: 0.4444444444 | J3: 0.5 | K3: 4 | L3: 3

Sheet GRAPHeqA

Sheet GRAPHeqB

Sheet GRAPHeqC

Sheet GRAPHeqD

Sheet GRAPHeqE

Sheet FICHE
C1: Equipe observée: | L1: Equipe observée:
C2: A | D2: B | E2: C | F2: D | G2: E | L2: A | M2: B | N2: C | O2: D | P2: E
A4: OBSERVATEUR 1 | B4: Tirs | J4: OBSERVATEUR 2 | K4: Possessions
B5: Paniers | K5: Pertes de balle
B6: SCORE | K6: Total de possessions
C9: Equipe observée: | L9: Equipe observée:
C10: A | D10: B | E10: C | F10: D | G10: E | L10: A | M10: B | N10: C | O10: D | P10: E
A12: OBSERVATEUR 1 | B12: Tirs | J12: OBSERVATEUR 2 | K12: Possessions
B13: Paniers | K13: Pertes de balle
B14: SCORE | K14: Total de possessions
